fUST/lending_fUST_20251004
["ID","MTS","AMOUNT","RATE_DAILY","PERIOD"]
[389007507,1759560658300,-500.0,0.00022191,3]
[389007510,1759560658311,-500.0,0.00022191,3]
[389007512,1759560658322,-565.62,0.00022191,3]
[389007514,1759560658331,-500.0,0.00022191,3]
[389007516,1759560658341,-976.86,0.00022191,3]
[389007518,1759560658350,-605.07,0.00022191,3]
[389007519,1759560658359,-500.0,0.00022191,3]
[389007521,1759560658368,-500.0,0.00022191,3]
[389007523,1759560658377,-500.0,0.00022191,3]
[389007525,1759560658386,-500.0,0.00022191,3]
[389007527,1759560658395,-500.0,0.00022191,3]
[389007529,1759560658403,-500.0,0.00022191,3]
[389007531,1759560658412,-4450.87,0.00022191,3]
[389007533,1759560658421,-500.0,0.00022191,3]
[389007535,1759560658431,-500.0,0.00022191,3]
[389007537,1759560658439,-2698.6,0.00022191,3]
[389007539,1759560658448,-1638.57,0.00022191,3]
[389007541,1759560658457,-500.0,0.00022191,3]
[389007543,1759560658466,-500.0,0.00022191,3]
[389007545,1759560658475,-929.92,0.00022191,3]
[389007547,1759560658484,-500.0,0.00022191,3]
[389007549,1759560658493,-10499.07,0.00022191,3]
[389007551,1759560658503,-500.0,0.00022191,3]
[389007553,1759560658512,-500.0,0.00022191,3]
[389007555,1759560658522,-1451.39,0.00022191,3]
[389007557,1759560658531,-500.0,0.00022191,3]
[389007559,1759560658540,-500.0,0.00022191,3]
[389007561,1759560658549,-1491.93,0.00022191,3]
[389007563,1759560658558,-500.0,0.00022191,3]
[389007565,1759560658567,-1445.66,0.00022191,3]
[389007567,1759560658576,-3737.77,0.00022191,3]
[389007569,1759560658585,-500.0,0.00022191,3]
[389007571,1759560658594,-500.0,0.00022191,3]
[389007573,1759560658603,-500.0,0.00022191,3]
[389007575,1759560658612,-500.0,0.00022191,3]
[389007577,1759560658621,-500.0,0.00022191,3]
[389007579,1759560658630,-500.0,0.00022191,3]
[389007581,1759560658639,-500.0,0.00022191,3]
[389007583,1759560658648,-500.0,0.00022191,3]
[389007585,1759560658658,-500.0,0.00022191,3]
[389007587,1759560658668,-674.55,0.00022191,3]
[389007589,1759560658677,-500.0,0.00022191,3]
[389007591,1759560658686,-4487.28,0.00022191,3]
[389007593,1759560658696,-500.0,0.00022191,3]
[389007595,1759560658705,-715.3,0.00022191,3]
[389007597,1759560658715,-500.0,0.00022191,3]
[389007599,1759560658724,-500.0,0.00022191,3]
[389007601,1759560658733,-1491.5,0.00022191,3]
[389007603,1759560658742,-612.81,0.00022191,3]
[389007605,1759560658751,-500.0,0.00022191,3]
[389007607,1759560658759,-1339.05,0.00022191,3]
[389007609,1759560658769,-500.0,0.00022191,3]
[389007612,1759560658779,-500.0,0.00022191,3]
[389007613,1759560658789,-987.8,0.00022191,3]
[389007616,1759560658800,-519.61,0.00022191,3]
[389007618,1759560658809,-2965.9,0.00022191,3]
[389007620,1759560658818,-500.0,0.00022191,3]
[389007622,1759560658827,-1142.03,0.00022191,3]
[389007624,1759560658836,-1583.31,0.00022191,3]
[389007626,1759560658845,-615.21,0.00022191,3]
[389007628,1759560658855,-500.0,0.00022191,3]
[389007630,1759560658864,-387.7909883,0.00022191,3]
[389007632,1759560658873,-500.0,0.00022191,3]
[389007634,1759560658883,-500.0,0.00022191,3]
[389007636,1759560658893,-500.0,0.00022191,3]
[389007638,1759560658903,-1043.17,0.00022191,3]
[389007640,1759560658912,-785.24,0.00022191,3]
[389007642,1759560658922,-500.0,0.00022191,3]
[389007644,1759560658933,-1390.35,0.00022191,3]
[389007646,1759560658942,-500.0,0.00022191,3]
[389007648,1759560658951,-1271.14,0.00022191,3]
[389007650,1759560658960,-770.11,0.00022191,3]
[389007652,1759560658969,-500.0,0.00022191,3]
[389007654,1759560658983,-1991.57,0.00022191,3]
[389007656,1759560658993,-1025.62,0.00022191,3]
[389007658,1759560659002,-500.0,0.00022191,3]
[389007660,1759560659012,-3622.43,0.00022191,3]
[389007663,1759560659024,-2023.13,0.00022191,3]
[389007665,1759560659041,-500.0,0.00022191,3]
[389007666,1759560659055,-500.0,0.00022191,3]
[389007668,1759560659065,-500.0,0.00022191,3]
[389007671,1759560659074,-500.0,0.00022191,3]
[389007673,1759560659085,-500.0,0.00022191,3]
[389007675,1759560659096,-6461.22,0.00022191,3]
[389007677,1759560659106,-500.0,0.00022191,3]
[389007679,1759560659117,-500.0,0.00022191,3]
[389007681,1759560659127,-388.77467103,0.00022191,3]
[389007683,1759560659137,-500.0,0.00022191,3]
[389007685,1759560659146,-481.62687088,0.00022191,3]
[389007687,1759560659156,-500.0,0.00022191,3]
[389007689,1759560659165,-500.0,0.00022191,3]
[389007691,1759560659174,-1876.49,0.00022191,3]
[389007693,1759560659183,-500.0,0.00022191,3]
[389007695,1759560659192,-505.62,0.00022191,3]
[389007697,1759560659201,-728.97,0.00022191,3]
[389007699,1759560659212,-1834.46,0.00022191,3]
[389007701,1759560659221,-500.0,0.00022191,3]
[389007703,1759560659232,-500.0,0.00022191,3]
[389007705,1759560659243,-3348.94,0.00022191,3]
[389007707,1759560659253,-500.0,0.00022191,3]
[389007709,1759560659262,-500.0,0.00022191,3]
[389007711,1759560659271,-761.41,0.00022191,3]
[389007713,1759560659281,-500.0,0.00022191,3]
[389007715,1759560659290,-500.0,0.00022191,3]
[389007717,1759560659300,-500.0,0.00022191,3]
[389007719,1759560659310,-500.0,0.00022191,2]
[389007721,1759560659320,-5019.66,0.00022191,3]
[389007723,1759560659329,-500.0,0.00022191,3]
[389007725,1759560659339,-151.0,0.000222,5]
[389007726,1759560659349,-151.0,0.00022266,3]
[389007728,1759560659358,-151.3145333,0.00022266,3]
[389007730,1759560659367,-151.0,0.00022266,2]
[389007732,1759560659377,-221.85373882,0.00022266,2]
[389007734,1759560659387,-151.0,0.00022266,2]
[389007736,1759560659396,-151.0,0.00022266,2]
[389007738,1759560659405,-161.39665758,0.00022266,2]
[389007740,1759560659415,-500.0,0.00022266,2]
[389007742,1759560659424,-151.7547861,0.00022266,2]
[389007744,1759560659433,-170.46811533,0.00022266,2]
[389007747,1759560659443,-500.0,0.00022266,2]
[389007749,1759560659453,-500.0,0.00022266,2]
[389007751,1759560659463,-276.9454925,0.00022266,2]
[389007753,1759560659472,-151.0,0.00022266,2]
[389007755,1759560659482,-151.0,0.00022266,2]
[389007757,1759560659492,-151.0,0.00022266,2]
[389007759,1759560659501,-151.0,0.00022266,2]
[389007761,1759560659513,-151.0,0.00022266,2]
[389007763,1759560659522,-500.0,0.00022266,2]
[389007765,1759560659531,-151.0,0.00022266,2]
[389007767,1759560659541,-1003.0,0.00022266,2]
[389007769,1759560659550,-500.0,0.00022266,2]
[389007771,1759560659560,-500.0,0.00022266,2]
[389007773,1759560659570,-232.14105881,0.00022266,2]
[389007775,1759560659579,-151.0,0.000223,6]
[389007777,1759560659589,-458.63151557,0.00022311,2]
[389007779,1759560659598,-300.0,0.00022354,20]
[389007781,1759560659607,-300.0,0.00022354,20]
[389007783,1759560659617,-300.0,0.00022354,20]
[389007785,1759560659626,-300.0,0.00022354,20]
[389007787,1759560659636,-300.0,0.00022354,20]
[389007789,1759560659646,-300.0,0.00022354,20]
[389007791,1759560659655,-300.0,0.00022354,20]
[389007793,1759560659665,-300.0,0.00022354,20]
[389007795,1759560659674,-300.0,0.00022354,20]
[389007797,1759560659684,-300.0,0.00022354,20]
[389007799,1759560659694,-300.0,0.00022354,20]
[389007801,1759560659703,-300.0,0.00022354,20]
[389007803,1759560659713,-300.0,0.00022354,20]
[389007805,1759560659725,-300.0,0.00022354,20]
[389007808,1759560659735,-300.0,0.00022354,20]
[389007810,1759560659744,-600.0,0.00022354,20]
[389007812,1759560659754,-306.0,0.00022356,2]
[389007814,1759560659763,-11744.71678717,0.00022365,2]
[389007816,1759560659773,-151.0,0.000224,9]
[389007818,1759560659784,-151.0,0.000224,7]
[389007820,1759560659793,-500.0,0.00022402,2]
[389007822,1759560659803,-512.6705584,0.00022416,2]
[389007824,1759560659812,-2000.0,0.00022416,2]
[389007826,1759560659821,-2000.0,0.00022416,2]
[389007828,1759560659831,-2000.0,0.00022416,2]
[389007830,1759560659841,-2000.0,0.00022416,2]
[389007832,1759560659850,-2000.0,0.00022416,2]
[389007834,1759560659859,-510.48763434,0.00022416,2]
[389007836,1759560659869,-2000.0,0.00022416,2]
[389007838,1759560659878,-65597.40420996,0.0002244,2]
[389007840,1759560659888,-539.94935797,0.00022444,2]
[389007842,1759560659897,-168.0,0.0002245,2]
[389007844,1759560659907,-500.0,0.00022465,3]
[389007846,1759560659918,-500.0,0.00022465,3]
[389007848,1759560659928,-26017.297906,0.00022465,2]
[389007850,1759560659937,-646.0,0.00022465,3]
[389007852,1759560659947,-500.0,0.00022465,3]
[389007854,1759560659958,-500.0,0.00022465,3]
[389007856,1759560659967,-599.69,0.00022465,3]
[389007858,1759560659981,-160.9072093,0.00022465,3]
[389007860,1759560659990,-500.0,0.00022465,3]
[389007862,1759560660000,-547.21,0.00022465,3]
[389007865,1759560660010,-1842.46,0.00022465,3]
[389007867,1759560660019,-500.0,0.00022465,3]
[389007869,1759560660028,-500.0,0.00022465,3]
[389007871,1759560660038,-500.0,0.00022465,3]
[389007873,1759560660048,-500.0,0.00022465,3]
[389007875,1759560660058,-500.0,0.00022465,3]
[389007877,1759560660069,-500.0,0.00022465,3]
[389007879,1759560660079,-1374.26,0.00022465,3]
[389007881,1759560660089,-500.0,0.00022465,3]
[389007883,1759560660098,-500.0,0.00022465,3]
[389007885,1759560660107,-4156.8573211,0.00022465,2]
[389007887,1759560660116,-3343.34,0.00022465,3]
[389007889,1759560660126,-500.0,0.00022465,3]
[389007891,1759560660136,-500.0,0.00022465,3]
[389007893,1759560660145,-500.0,0.00022465,3]
[389007895,1759560660155,-500.0,0.00022465,3]
[389007897,1759560660164,-500.0,0.00022465,3]
[389007899,1759560660174,-500.0,0.00022465,3]
[389007901,1759560660183,-631.64,0.00022465,3]
[389007903,1759560660193,-500.0,0.00022465,3]
[389007905,1759560660203,-500.0,0.00022465,3]
[389007908,1759560660213,-777.68,0.00022465,3]
[389007910,1759560660223,-500.0,0.00022465,3]
[389007912,1759560660232,-500.0,0.00022465,3]
[389007914,1759560660242,-997.49,0.00022465,3]
[389007916,1759560660251,-835.29,0.00022465,3]
[389007918,1759560660261,-500.0,0.00022465,3]
[389007920,1759560660271,-500.0,0.00022465,3]
[389007922,1759560660281,-500.0,0.00022465,3]
[389007924,1759560660290,-500.0,0.00022465,3]
[389007926,1759560660299,-1053.37,0.00022465,3]
[389007928,1759560660309,-500.0,0.00022465,3]
[389007930,1759560660318,-500.0,0.00022465,3]
[389007932,1759560660327,-500.0,0.00022465,3]
[389007934,1759560660337,-920.7,0.00022465,3]
[389007936,1759560660346,-1449.67,0.00022465,3]
[389007938,1759560660356,-385.68224796,0.00022465,3]
[389007940,1759560660366,-500.0,0.00022465,3]
[389007942,1759560660375,-1075.68,0.00022465,3]
[389007944,1759560660385,-500.0,0.00022465,3]
[389007946,1759560660394,-732.66,0.00022465,3]
[389007948,1759560660404,-1089.69,0.00022465,3]
[389007950,1759560660413,-500.0,0.00022465,3]
[389007952,1759560660422,-500.0,0.00022465,3]
[389007954,1759560660431,-500.0,0.00022465,3]
[389007956,1759560660440,-500.0,0.00022465,3]
[389007958,1759560660450,-500.0,0.00022465,3]
[389007960,1759560660459,-1450.42,0.00022465,3]
[389007962,1759560660469,-201.2062146,0.00022465,3]
[389007964,1759560660478,-500.0,0.00022465,3]
[389007966,1759560660487,-500.0,0.00022465,3]
[389007968,1759560660499,-481.79417268,0.00022465,3]
[389007970,1759560660508,-500.0,0.00022465,3]
[389007972,1759560660517,-500.0,0.00022465,3]
[389007974,1759560660527,-407.63226051,0.00022465,3]
[389007976,1759560660537,-500.0,0.00022465,3]
[389007978,1759560660546,-533.72,0.00022465,3]
[389007980,1759560660556,-500.0,0.00022465,3]
[389007982,1759560660566,-500.0,0.00022465,3]
[389007985,1759560660576,-500.0,0.00022465,3]
[389007987,1759560660586,-500.0,0.00022465,3]
[389007989,1759560660597,-501.27,0.00022465,3]
[389007991,1759560660606,-500.0,0.00022465,3]
[389007993,1759560660616,-829.1,0.00022465,3]
[389007995,1759560660627,-500.0,0.00022465,3]
[389007997,1759560660637,-500.0,0.00022465,3]
[389007999,1759560660647,-500.0,0.00022465,3]
[389008001,1759560660657,-500.0,0.00022465,3]
[389008003,1759560660667,-500.0,0.00022465,3]
[389008005,1759560660677,-568.37,0.00022465,3]
[389008007,1759560660686,-500.0,0.00022465,3]
[389008009,1759560660695,-500.0,0.00022465,3]
[389008011,1759560660704,-4129.0524588,0.00022465,2]
[389008013,1759560660714,-500.0,0.00022465,3]
[389008015,1759560660723,-500.0,0.00022465,3]
[389008017,1759560660732,-500.0,0.00022465,3]
[389008019,1759560660741,-500.0,0.00022465,3]
[389008021,1759560660750,-500.0,0.00022465,3]
[389008023,1759560660759,-433.88301451,0.00022465,3]
[389008025,1759560660769,-500.0,0.00022465,3]
[389008027,1759560660778,-1768.05,0.00022465,3]
[389008029,1759560660787,-313.2259023,0.00022465,2]
[389008031,1759560660796,-697.56,0.00022465,3]
[389008033,1759560660805,-500.0,0.00022465,3]
[389008035,1759560660814,-3135.84,0.00022465,3]
[389008037,1759560660823,-748.14,0.00022465,3]
[389008039,1759560660832,-943.9,0.00022465,3]
[389008041,1759560660840,-500.0,0.00022465,3]
[389008044,1759560660849,-986.28,0.00022465,3]
[389008046,1759560660859,-500.0,0.00022465,3]
[389008048,1759560660868,-500.0,0.00022465,3]
[389008050,1759560660878,-1083.34,0.00022465,3]
[389008052,1759560660888,-500.0,0.00022465,3]
[389008054,1759560660898,-500.0,0.00022465,3]
[389008056,1759560660908,-500.0,0.00022465,3]
[389008058,1759560660917,-390.75451838,0.00022465,3]
[389008060,1759560660926,-500.0,0.00022465,3]
[389008062,1759560660936,-500.0,0.00022465,3]
[389008064,1759560660945,-1225.94,0.00022465,3]
[389008066,1759560660953,-563.08,0.00022465,3]
[389008068,1759560660963,-500.0,0.00022465,3]
[389008070,1759560660972,-500.0,0.00022465,3]
[389008072,1759560660986,-500.0,0.00022465,3]
[389008075,1759560660996,-500.0,0.00022465,3]
[389008077,1759560661005,-707.3,0.00022465,3]
[389008079,1759560661015,-500.0,0.00022465,3]
[389008081,1759560661026,-402.4956591,0.00022465,3]
[389008083,1759560661036,-1030.77,0.00022465,3]
[389008104,1759560661197,-1690.12,0.00022465,3]
[389008106,1759560661228,-500.0,0.00022465,3]
[389008108,1759560661235,-500.0,0.00022465,3]
[389008111,1759560661244,-656.41,0.00022465,3]
[389008112,1759560661251,-1321.92,0.00022465,3]
[389008114,1759560661259,-500.0,0.00022465,3]
[389008116,1759560661266,-500.0,0.00022465,3]
[389008118,1759560661274,-500.0,0.00022465,3]
[389008120,1759560661282,-500.0,0.00022465,3]
[389008122,1759560661289,-500.0,0.00022465,3]
[389008124,1759560661297,-751.87,0.00022465,3]
[389008126,1759560661304,-1067.72,0.00022465,3]
[389008128,1759560661313,-500.0,0.00022465,3]
[389008130,1759560661320,-500.0,0.00022465,3]
[389008132,1759560661327,-500.0,0.00022465,3]
[389008134,1759560661334,-500.0,0.00022465,3]
[389008136,1759560661343,-603.08,0.00022465,3]
[389008138,1759560661350,-517.79,0.00022465,3]
[389008139,1759560661357,-500.0,0.00022465,3]
[389008142,1759560661366,-705.27,0.00022465,3]
[389008144,1759560661373,-1086.95,0.00022465,3]
[389008145,1759560661379,-500.0,0.00022465,3]
[389008148,1759560661390,-503.11,0.00022465,3]
[389008150,1759560661398,-500.0,0.00022465,3]
[389008152,1759560661406,-500.0,0.00022465,3]
[389008154,1759560661415,-500.0,0.00022465,3]
[389008156,1759560661423,-2047.9807066,0.00022465,2]
[389008158,1759560661431,-500.0,0.00022465,3]
[389008160,1759560661438,-500.0,0.00022465,3]
[389008161,1759560661447,-245.33348716,0.00022465,3]
[389008162,1759560661456,-500.0,0.00022465,3]
[389008163,1759560661465,-500.0,0.00022465,3]
[389008164,1759560661475,-500.0,0.00022465,3]
[389008165,1759560661484,-618.34414965,0.00022465,3]
[389008166,1759560661493,-500.0,0.00022465,3]
[389008167,1759560661502,-500.0,0.00022465,3]
[389008168,1759560661512,-3063.97,0.00022465,3]
[389008169,1759560661521,-500.0,0.00022465,3]
[389008170,1759560661531,-500.0,0.00022465,3]
[389008171,1759560661540,-500.0,0.00022465,3]
[389008172,1759560661549,-500.0,0.00022465,3]
[389008173,1759560661559,-500.0,0.00022465,3]
[389008174,1759560661568,-2015.87,0.00022465,3]
[389008175,1759560661575,-485.68367111,0.00022465,3]
[389008177,1759560661583,-882.11,0.00022465,3]
[389008179,1759560661592,-500.0,0.00022465,3]
[389008181,1759560661602,-1592.96,0.00022465,3]
[389008183,1759560661611,-500.0,0.00022465,3]
[389008185,1759560661621,-500.0,0.00022465,3]
[389008187,1759560661630,-902.37,0.00022465,3]
[389008189,1759560661640,-500.0,0.00022465,3]
[389008191,1759560661649,-500.0,0.00022465,2]
[389008193,1759560661659,-545.55,0.00022465,3]
[389008195,1759560661668,-500.0,0.00022465,3]
[389008197,1759560661678,-1555.66,0.00022465,3]
[389008199,1759560661687,-500.0,0.00022465,3]
[389008201,1759560661696,-500.0,0.00022465,3]
[389008203,1759560661706,-562.18,0.00022465,3]
[389008205,1759560661715,-500.0,0.00022465,3]
[389008207,1759560661724,-539.88,0.00022465,3]
[389008209,1759560661734,-500.0,0.00022465,3]
[389008211,1759560661743,-500.0,0.00022465,3]
[389008213,1759560661752,-649.9,0.00022465,3]
[389008215,1759560661762,-500.0,0.00022465,3]
[389008217,1759560661771,-500.0,0.00022465,3]
[389008219,1759560661781,-500.0,0.00022465,3]
[389008221,1759560661790,-1554.42,0.00022465,3]
[389008223,1759560661800,-3135.98,0.00022465,3]
[389008225,1759560661811,-2091.91,0.00022465,3]
[389008227,1759560661820,-500.0,0.00022465,3]
[389008229,1759560661829,-500.0,0.00022465,3]
[389008231,1759560661839,-500.0,0.00022465,3]
[389008233,1759560661850,-500.0,0.00022465,3]
[389008235,1759560661859,-1314.83,0.00022465,3]
[389008237,1759560661868,-863.41,0.00022465,3]
[389008239,1759560661878,-971.49,0.00022465,3]
[389008241,1759560661888,-767.34,0.00022465,3]
[389008243,1759560661898,-500.0,0.00022465,3]
[389008245,1759560661908,-500.0,0.00022465,3]
[389008247,1759560661918,-500.0,0.00022465,3]
[389008249,1759560661927,-500.0,0.00022465,3]
[389008251,1759560661936,-500.0,0.00022465,3]
[389008253,1759560661946,-500.0,0.00022465,3]
[389008255,1759560661955,-743.49,0.00022465,3]
[389008257,1759560661965,-1637.42,0.00022465,3]
[389008259,1759560661976,-500.0,0.00022465,3]
[389008261,1759560661986,-500.0,0.00022465,3]
[389008262,1759560661997,-500.0,0.00022465,3]
[389008264,1759560662006,-1161.41,0.00022465,3]
[389008266,1759560662015,-500.0,0.00022465,3]
[389008268,1759560662025,-539.03,0.00022465,3]
[389008270,1759560662034,-500.0,0.00022465,3]
[389008272,1759560662044,-500.0,0.00022465,3]
[389008275,1759560662055,-636.6,0.00022465,3]
[389008276,1759560662065,-511.22,0.00022465,3]
[389008279,1759560662074,-1269.28,0.00022465,3]
[389008280,1759560662083,-500.0,0.00022465,3]
[389008283,1759560662093,-500.0,0.00022465,3]
[389008284,1759560662103,-500.0,0.00022465,3]
[389008287,1759560662113,-500.0,0.00022465,3]
[389008289,1759560662123,-761.57,0.00022465,3]
[389008291,1759560662133,-1168.53,0.00022465,3]
[389008293,1759560662142,-1910.56,0.00022465,3]
[389008295,1759560662151,-805.89,0.00022465,3]
[389008297,1759560662160,-366.34418247,0.00022465,3]
[389008299,1759560662170,-500.0,0.00022465,3]
[389008301,1759560662179,-584.95,0.00022465,3]
[389008303,1759560662189,-500.0,0.00022465,3]
[389008305,1759560662200,-500.0,0.00022465,3]
[389008307,1759560662209,-481.95125588,0.00022465,3]
[389008309,1759560662218,-500.0,0.00022465,3]
[389008311,1759560662228,-500.0,0.00022465,3]
[389008313,1759560662237,-500.0,0.00022465,3]
[389008315,1759560662247,-543.76,0.00022465,3]
[389008317,1759560662256,-3954.2,0.00022465,3]
[389008319,1759560662266,-500.0,0.00022465,3]
[389008321,1759560662276,-600.62,0.00022465,3]
[389008323,1759560662285,-500.0,0.00022465,3]
[389008325,1759560662294,-1029.47,0.00022465,3]
[389008327,1759560662304,-1568.4,0.00022465,3]
[389008329,1759560662313,-500.0,0.00022465,3]
[389008331,1759560662322,-500.0,0.00022465,3]
[389008333,1759560662331,-631.7,0.00022465,3]
[389008335,1759560662340,-185.00967071,0.00022465,3]
[389008337,1759560662349,-500.0,0.00022465,3]
[389008339,1759560662358,-500.0,0.00022465,3]
[389008341,1759560662367,-500.0,0.00022465,3]
[389008343,1759560662376,-549.7,0.00022465,3]
[389008345,1759560662386,-500.0,0.00022465,3]
[389008347,1759560662395,-500.0,0.00022465,3]
[389008349,1759560662404,-500.0,0.00022465,3]
[389008351,1759560662413,-500.0,0.00022465,3]
[389008353,1759560662422,-868.91,0.00022465,3]
[389008355,1759560662432,-500.0,0.00022465,3]
[389008357,1759560662441,-500.0,0.00022465,3]
[389008359,1759560662450,-500.0,0.00022465,3]
[389008361,1759560662459,-500.0,0.00022465,3]
[389008362,1759560662468,-500.0,0.00022465,3]
[389008364,1759560662477,-697.24,0.00022465,3]
[389008366,1759560662487,-500.0,0.00022465,3]
[389008368,1759560662496,-500.0,0.00022465,3]
[389008370,1759560662506,-683.44,0.00022465,3]
[389008372,1759560662516,-500.0,0.00022465,3]
[389008374,1759560662526,-580.14,0.00022465,3]
[389008376,1759560662535,-500.0,0.00022465,3]
[389008378,1759560662544,-500.0,0.00022465,3]
[389008380,1759560662553,-500.0,0.00022465,3]
[389008382,1759560662562,-452.32683866,0.00022465,3]
[389008384,1759560662572,-6388.98,0.00022465,3]
[389008386,1759560662582,-500.0,0.00022465,3]
[389008388,1759560662591,-500.0,0.00022465,3]
[389008390,1759560662601,-828.82,0.00022465,3]
[389008392,1759560662610,-500.0,0.00022465,3]
[389008394,1759560662619,-522.14,0.00022465,3]
[389008396,1759560662628,-220.44024266,0.00022465,3]
[389008398,1759560662638,-991.21,0.00022465,3]
[389008400,1759560662647,-1041.86,0.00022465,3]
[389008402,1759560662656,-1986.41,0.00022465,3]
[389008404,1759560662666,-500.0,0.00022465,3]
[389008406,1759560662675,-500.0,0.00022465,3]
[389008408,1759560662685,-1156.15,0.00022465,3]
[389008410,1759560662694,-674.43,0.00022465,3]
[389008412,1759560662703,-407.03477911,0.00022465,3]
[389008414,1759560662712,-924.04,0.00022465,3]
[389008416,1759560662721,-1748.78,0.00022465,3]
[389008417,1759560662730,-581.4,0.00022465,3]
[389008420,1759560662739,-500.0,0.00022465,3]
[389008421,1759560662749,-905.44,0.00022465,3]
[389008424,1759560662758,-571.37,0.00022465,3]
[389008426,1759560662768,-653.71,0.00022465,3]
[389008427,1759560662778,-1561.34,0.00022465,3]
[389008429,1759560662787,-500.0,0.00022465,3]
[389008431,1759560662797,-500.0,0.00022465,3]
[389008433,1759560662806,-1086.89,0.00022465,3]
[389008435,1759560662816,-500.0,0.00022465,3]
[389008438,1759560662826,-500.0,0.00022465,3]
[389008439,1759560662835,-1226.68,0.00022465,3]
[389008441,1759560662845,-500.0,0.00022465,3]
[389008443,1759560662855,-500.0,0.00022465,3]
[389008445,1759560662864,-500.0,0.00022465,3]
[389008447,1759560662873,-917.82,0.00022465,3]
[389008449,1759560662883,-1000.0,0.00022465,2]
[389008451,1759560662892,-500.0,0.00022465,3]
[389008453,1759560662902,-500.0,0.00022465,3]
[389008455,1759560662911,-462.14122412,0.00022465,3]
[389008457,1759560662921,-546.86,0.00022465,3]
[389008459,1759560662931,-1026.48,0.00022465,3]
[389008461,1759560662941,-500.0,0.00022465,3]
[389008464,1759560662952,-500.0,0.00022465,3]
[389008466,1759560662965,-680.39,0.00022465,3]
[389008468,1759560662977,-500.0,0.00022465,3]
[389008470,1759560662988,-2304.04,0.00022465,3]
[389008471,1759560662997,-500.0,0.00022465,3]
[389008473,1759560663006,-500.0,0.00022465,3]
[389008475,1759560663016,-500.0,0.00022465,3]
[389008477,1759560663027,-500.0,0.00022465,3]
[389008479,1759560663036,-2915.74,0.00022465,3]
[389008481,1759560663046,-669.02,0.00022465,3]
[389008483,1759560663057,-500.0,0.00022465,3]
[389008485,1759560663067,-500.0,0.00022465,3]
[389008487,1759560663077,-915.3,0.00022465,3]
[389008489,1759560663087,-500.0,0.00022465,3]
[389008491,1759560663096,-1286.32,0.00022465,3]
[389008493,1759560663106,-500.0,0.00022465,3]
[389008495,1759560663115,-500.0,0.00022465,3]
[389008497,1759560663124,-500.0,0.00022465,3]
[389008499,1759560663134,-2035.86,0.00022465,3]
[389008501,1759560663144,-306.18155433,0.00022465,3]
[389008503,1759560663154,-500.0,0.00022465,3]
[389008505,1759560663163,-500.0,0.00022465,3]
[389008507,1759560663173,-500.0,0.00022465,3]
[389008509,1759560663182,-500.0,0.00022465,3]
[389008511,1759560663192,-756.07,0.00022465,3]
[389008513,1759560663201,-500.0,0.00022465,3]
[389008515,1759560663210,-500.0,0.00022465,3]